[Event "Kvika Banki League Iceland 2022-23"]
[Site "Reykjavik"]
[Date "2022.10.14"]
[Round "2.20"]
[White "Bjornsson, Sigurbjorn"]
[Black "Stefansson, Hannes"]
[Result "0-1"]
[ECO "C77"]
[WhiteElo "2308"]
[BlackElo "2527"]
[Annotator "TA"]
[PlyCount "78"]
[EventDate "2022.10.13"]
[EventType "team-tourn"]
[EventCountry "ISL"]
[SourceTitle "playchess.com"]
[Source "ChessBase"]
[SourceQuality "1"]
[TimeControl "5400+30"]

{[%evp 16,78,25,16,14,25,22,21,26,19,32,0,29,0,-4,-24,-19,-35,-43,-29,-26,-47,-43,-83,-47,-76,-35,-174,-35,-42,-33,-71,-54,-57,-48,-51,-18,-152,-125,-160,-143,-191,-193,-329,-325,-351,-375,-436,-405,-499,-480,-691,-695,-685,-670,-1110,-1109,-1091,-1083,-1420,-1281,-29983,-29984,-29995,-29996]} 1. e4 {[%emt 0:00:02]} e5 {[%emt 0:02:03]} 2. Nf3 {[%emt 0:00:06]} Nc6 {[%emt 0:00:16]} 3. Bb5 {[%emt 0:00:13]} a6 {[%emt 0:00:17]} 4. Ba4 {[%emt 0:00:04]} Nf6 {[%emt 0:00:54]} 5. d3 {[%emt 0:00:26]} d6 {[%emt 0:03:30]} 6. c3 {[%emt 0:00:31]} g6 {[%emt 0:01:25]} 7. O-O {[%emt 0:01:31]} Bg7 {[%emt 0:00:22]} 8. h3 {[%emt 0:02:54]} O-O {[%emt 0:00:38]} 9. Bg5 {[%emt 0:03:11]} h6 {[%emt 0:01:51] C77: Ruy Lopez: 3...a6 4 Ba4 Nf6, unusual lines.} 10. Be3 {[%emt 0:00:41]} b5 {[%emt 0:01:17]} 11. Bc2 {[%emt 0:02:56]} d5 {[%emt 0:02:37] [#] The position is equal.} 12. a4 $146 {[%emt 0:02:16] [#] axb5 is the strong threat.} ({Predecessor:} 12. Nbd2 g5 13. d4 g4 14. Nxe5 Nxe5 15. dxe5 Nd7 16. Qxg4 Nxe5 17. Qg3 Kh8 18. exd5 {1-0 (39) Atehortua,J (1765)-Dominguez Rincon,M (2106) Santa Rosa 2021}) 12... Be6 {[%emt 0:02:09]} 13. Qc1 {[%emt 0:13:46]} Kh7 {[%emt 0:01:01]} 14. Bc5 {[%emt 0:04:31]} Re8 {[%emt 0:00:51][%cal Ob5b4]} 15. axb5 {[%emt 0:01:27]} axb5 {[%emt 0:00:18]} 16. Rxa8 {[%emt 0:00:50]} Qxa8 {[%emt 0:00:06]} 17. Nbd2 {[%emt 0:02:19]} Nd7 {[%emt 0:07:54]} 18. exd5 {[%emt 0:14:11]} Bxd5 {[%emt 0:00:34]} 19. Ba3 {[%emt 0:05:45]} f5 {[%emt 0:03:16]} 20. Re1 {[%emt 0:01:03]} Nf6 {[%emt 0:02:17]} 21. b4 {[%emt 0:02:50]} (21. g3 $15) 21... Nh5 {[%emt 0:04:33]} (21... e4 $19 22. dxe4 fxe4) 22. Bb2 $15 {[%emt 0:03:06]} Nf4 {[%emt 0:01:09]} 23. Re3 {[%emt 0:12:45]} Bf7 {[%emt 0:05:41] Black is much more active.} 24. Bb1 {[%emt 0:01:44]} g5 {[%emt 0:02:05]} 25. Qf1 {[%emt 0:01:19]} Bg6 {[%emt 0:02:25]} 26. c4 {[%emt 0:04:23]} (26. Re1 $11) 26... e4 $17 {[%emt 0:04:08]} ({Much worse is} 26... Nxb4 $6 27. Bxe5 bxc4 28. dxc4 $14) 27. dxe4 {[%emt 0:07:44]} ({Avoid the trap} 27. Bxg7 $2 exf3 28. Nxf3 (28. Rxe8 $2 Qxe8 29. Nxf3 Kxg7 $19) 28... Kxg7 $19) 27... Bxb2 {[%emt 0:00:35]} 28. exf5 {[%emt 0:00:13]} (28. g3 $17 {was worth a try.} Nxh3+ 29. Qxh3) 28... Bf7 $19 {[%emt 0:00:30]} 29. Ne4 {[%emt 0:05:54]} (29. Be4 $142 bxc4 30. Nxc4) 29... Bxc4 {[%emt 0:04:27]} 30. Qe1 {[%emt 0:00:51][%cal Oe4g5]} Kh8 {[%emt 0:00:36]} 31. Qd2 {[%emt 0:02:52]} Ba1 {[%emt 0:06:47]} 32. f6 {[%emt 0:01:26] [#] aiming for Qd7.} Rd8 {[%emt 0:00:37] Prevents Qd7.} 33. Qc2 {[%emt 0:01:58]} (33. Qe1 $142 Nd5 34. Nfd2) 33... Nxb4 {[%emt 0:01:06][%cal Bc6b4,Bb4d5,Bd5f6][%mdl 32]} 34. Qc1 {[%emt 0:00:39]} Nbd5 {[%emt 0:04:22][%csl LRe3,LRf6]} 35. Nexg5 {[%emt 0:00:54]} hxg5 {[%emt 0:03:50]} 36. Qc2 {[%emt 0:00:28]} Nxf6 {[%emt 0:00:53] And now ...Rd3 would win.} 37. Qf5 {[%emt 0:00:38]} Rd5 {[%emt 0:01:02]} 38. Re5 {[%emt 0:00:32]} Bxe5 {[%emt 0:00:38]} 39. Qxg5 {[%emt 0:00:09]} Ne2+ {[%emt 0:01:07] Weighted Error Value: White=0.93/Black=0.14 (very precise)} 0-1

[Event "Kvika Banki League Iceland 2022-23"]
[Site "Reykjavik"]
[Date "2022.10.14"]
[Round "2.21"]
[White "Movsziszian, Karen"]
[Black "Johannesson, Oliver"]
[Result "1-0"]
[ECO "B20"]
[WhiteElo "2474"]
[BlackElo "2205"]
[Annotator "TA"]
[PlyCount "91"]
[EventDate "2022.10.13"]
[EventType "team-tourn"]
[EventCountry "ISL"]
[SourceTitle "playchess.com"]
[Source "ChessBase"]
[SourceQuality "1"]
[TimeControl "5400+30"]

{[%evp 20,91,18,6,17,16,31,9,63,65,73,36,31,48,28,24,77,17,88,88,103,97,105,95,108,107,123,125,131,112,141,79,79,79,79,79,79,79,79,79,80,72,75,40,40,41,53,44,47,34,63,50,83,79,71,27,19,0,0,0,0,-39,0,0,0,0,344,331,590,562,29989,29990,29990,29991]} 1. e4 {[%emt 0:00:08]} c5 {[%emt 0:00:16]} 2. d3 {[%emt 0:00:07]} Nc6 {[%emt 0:00:50]} 3. g3 {[%emt 0:00:03]} g6 {[%emt 0:01:14]} 4. Bg2 {[%emt 0:00:05]} Bg7 {[%emt 0:00:05]} 5. f4 {[%emt 0:00:21]} d6 {[%emt 0:02:29]} 6. Nf3 {[%emt 0:02:42]} e6 {[%emt 0:01:47]} 7. O-O {[%emt 0:00:07]} Nge7 {[%emt 0:00:04]} 8. c3 {[%emt 0:00:05]} O-O {[%emt 0:01:09]} 9. Be3 {[%emt 0:00:06]} b6 {[%emt 0:03:44]} 10. Na3 {[%emt 0:00:07]} Ba6 {[%emt 0:03:46]} 11. Re1 {[%emt 0:00:10]} Rc8 {[%emt 0:15:19] B20: Sicilian: Unusual White 2nd moves.} 12. Nc2 {[%emt 0:04:07]} Qd7 {[%emt 0:08:35]} 13. Bf2 {[%emt 0:00:31]} b5 {[%emt 0:03:02]} ({Better is} 13... e5 $11) 14. d4 $14 {[%emt 0:07:12]} cxd4 {[%emt 0:00:52]} 15. cxd4 {[%emt 0:00:02]} d5 {[%emt 0:01:29]} 16. e5 {[%emt 0:00:03]} b4 {[%emt 0:01:07] [#]} 17. Ne3 $146 {[%emt 0:05:08]} ({Predecessor:} 17. g4 Qb7 18. Ne3 Bh6 19. Bg3 Na5 20. Bh4 Bxf4 21. Bh3 Nc4 22. Ng2 Bh6 23. Rb1 {1-0 (64) Kuzmicz,K (2460)-Weichhold,P (2425) Zgierz 2018}) 17... Nf5 {[%emt 0:04:09]} (17... Rc7 $11 {remains equal.}) 18. Nf1 {[%emt 0:02:26]} ({White should try} 18. Nxf5 $16 gxf5 19. Nd2) 18... Bxf1 {[%emt 0:01:33]} (18... Na5 $11) 19. Bxf1 $16 {[%emt 0:00:10]} Na5 {[%emt 0:01:50]} 20. Ba6 {[%emt 0:08:46]} Rc7 {[%emt 0:04:16]} 21. b3 {[%emt 0:03:35] Inhibits Nc4.} Rc3 {[%emt 0:04:05]} 22. Qe2 {[%emt 0:05:07]} Qc7 {[%emt 0:08:35]} 23. Bd3 {[%emt 0:02:17]} Ne7 {[%emt 0:03:27]} 24. Rad1 {[%emt 0:02:04]} Nb7 {[%emt 0:01:01]} 25. Ba6 {[%emt 0:06:06]} (25. Be3 $142) 25... Qb6 {[%emt 0:02:17][%cal Oc3f3]} 26. Kg2 {[%emt 0:03:37]} Rfc8 {[%emt 0:01:08]} 27. Rd2 {[%emt 0:00:05] Inhibits Rc2.} R8c6 {[%emt 0:02:41]} 28. Bb5 {[%emt 0:00:28] This bishop pair is nice.} Rc7 {[%emt 0:00:15]} 29. Red1 {[%emt 0:03:37]} a5 {[%emt 0:02:12]} 30. Be1 {[%emt 0:01:02]} Nd8 {[%emt 0:04:04]} 31. Ba4 {[%emt 0:01:36]} Nf5 {[%emt 0:00:38] [#] aiming for ...Ne3+.} 32. Bf2 {[%emt 0:01:28] Inhibits Ne3+.} Nc6 {[%emt 0:05:09]} 33. g4 {[%emt 0:01:21]} Nfe7 {[%emt 0:00:11]} 34. Bh4 {[%emt 0:00:08]} h6 {[%emt 0:03:59]} 35. Bf6 {[%emt 0:03:14]} Kf8 {[%emt 0:03:50]} 36. Qf2 {[%emt 0:01:48]} Ng8 {[%emt 0:00:38]} 37. Bxg7+ {[%emt 0:02:09]} Kxg7 {[%emt 0:00:02]} 38. f5 {[%emt 0:00:11]} exf5 {[%emt 0:02:03]} 39. gxf5 {[%emt 0:00:05]} gxf5 {[%emt 0:00:46]} 40. Bxc6 {[%emt 0:00:31]} R7xc6 {[%emt 0:00:43]} 41. Nh4 {[%emt 0:01:15][%cal Bf3h4,Bh4f5,Bf5e7][%mdl 32]} Ne7 {[%emt 0:00:09]} 42. Kh1 {[%emt 0:00:04]} Kh7 $2 {[%emt 0:03:31][%mdl 8192]} (42... Kf8 $11 {and Black has nothing to worry.}) 43. Nxf5 $18 {[%emt 0:00:58]} Ng6 {[%emt 0:00:22] [#]} (43... Nxf5 {was called for.} 44. Qxf5+ Rg6 45. Qxf7+ Rg7 46. Qxd5 Re3) 44. Ne7 $1 {[%emt 0:04:03][%mdl 512]} Nxe7 {[%emt 0:00:45]} (44... Nh8 45. Nxd5) 45. Qxf7+ {[%emt 0:00:05]} Kh8 {[%emt 0:00:04]} 46. Qe8+ {[%emt 0:00:53] Weighted Error Value: White=0.12 (very precise) /Black=0.52} 1-0

[Event "Kvika Banki League Iceland 2022-23"]
[Site "Reykjavik"]
[Date "2022.10.14"]
[Round "2.22"]
[White "Halldorsson, Jon Arni"]
[Black "Arngrimsson, Dagur"]
[Result "0-1"]
[ECO "D45"]
[WhiteElo "2057"]
[BlackElo "2377"]
[Annotator "TA"]
[PlyCount "92"]
[EventDate "2022.10.13"]
[EventType "team-tourn"]
[EventCountry "ISL"]
[SourceTitle "playchess.com"]
[Source "ChessBase"]
[SourceQuality "1"]
[TimeControl "5400+30"]

{[%evp 15,92,11,14,21,16,-12,4,15,16,-32,-35,-35,-29,-37,-20,-34,0,0,0,-7,-4,-8,-7,-22,-19,-28,-10,-10,-10,-16,-5,-7,-6,-13,-13,-11,-14,-11,-7,-23,-23,-31,-31,-41,-16,-12,-8,-8,-8,-8,-8,-8,-8,-8,-8,-8,-8,-8,-8,-8,-8,-10,-8,-113,-110,-213,-213,-1412,-1538,-1256,-1194,-2338,-2360,-2361,-2332,-1644,-1604,-1276,-1135]} 1. d4 {[%emt 0:00:03] Lutz,C} d5 {[%emt 0:00:52]} 2. Nf3 {[%emt 0:00:23]} c6 {[%emt 0:01:21]} 3. e3 {[%emt 0:01:47]} Nf6 {[%emt 0:04:04]} 4. c4 {[%emt 0:01:05]} e6 {[%emt 0:00:37]} 5. Nc3 {[%emt 0:00:45]} Nbd7 {[%emt 0:02:08]} 6. Qc2 {[%emt 0:01:32]} b6 {[%emt 0:02:16]} 7. Bd3 {[%emt 0:01:32]} Bb7 {[%emt 0:00:30]} 8. O-O {[%emt 0:00:19]} Be7 {[%emt 0:02:03]} 9. e4 {[%emt 0:01:45] D45: Semi-Slav: 5 e3.} dxe4 {[%emt 0:04:10]} 10. Nxe4 {[%emt 0:00:08]} Nxe4 {[%emt 0:03:08]} 11. Bxe4 {[%emt 0:00:08] The position is equal.} Nf6 {[%emt 0:00:03] [#]} 12. Bg5 $146 {[%emt 0:01:43]} (12. Re1 $11) ({Predecessor:} 12. Ne5 Rc8 13. Rd1 Nxe4 14. Qxe4 O-O 15. Bf4 Ba8 16. Rd3 c5 17. Qe3 Qe8 18. d5 exd5 19. cxd5 {1-0 (34) Mamedyarov,S (2646)-Timofeev,A (2578) Moscow 2004 CBM 100 [Lutz,C]}) 12... Nxe4 $15 {[%emt 0:02:05]} 13. Bxe7 {[%emt 0:00:09]} Qxe7 {[%emt 0:00:27]} 14. Qxe4 {[%emt 0:00:06]} c5 {[%emt 0:01:28]} 15. Qe3 {[%emt 0:04:11]} cxd4 {[%emt 0:15:20]} (15... Rd8 $5 {[%cal Rb7f3]}) 16. Nxd4 {[%emt 0:00:27]} O-O {[%emt 0:01:16]} 17. Rfd1 {[%emt 0:02:51]} Rfd8 {[%emt 0:04:48]} 18. b3 {[%emt 0:11:05]} Rd7 {[%emt 0:05:56]} 19. Nc2 {[%emt 0:23:23]} Rad8 {[%emt 0:01:27]} 20. Qe2 {[%emt 0:00:47]} f5 {[%emt 0:06:21]} 21. Rxd7 {[%emt 0:03:08]} Qxd7 {[%emt 0:05:08]} 22. Re1 {[%emt 0:05:04]} Be4 {[%emt 0:00:41]} 23. f3 {[%emt 0:06:14]} Bd3 {[%emt 0:04:33]} 24. Qf2 {[%emt 0:00:37]} Bxc2 {[%emt 0:09:14]} 25. Qxc2 $11 {[%emt 0:00:06][%mdl 4096] Endgame KQR-KQR} Kf7 {[%emt 0:00:18]} 26. Qe2 {[%emt 0:01:17]} Qd4+ {[%emt 0:01:43]} 27. Qe3 {[%emt 0:05:20]} Qxe3+ {[%emt 0:03:58]} (27... Kf6 {looks sharper.} 28. Kf2 Qc5 29. f4 Rd2+) 28. Rxe3 {[%emt 0:00:04] KR-KR} Rd2 {[%emt 0:00:09]} 29. a3 {[%emt 0:00:22]} g5 {[%emt 0:01:31]} 30. Rc3 $1 {[%emt 0:02:40]} Ra2 {[%emt 0:01:37]} 31. a4 {[%emt 0:01:25]} Rb2 {[%emt 0:01:58]} 32. c5 {[%emt 0:00:29]} bxc5 {[%emt 0:03:13]} 33. Rxc5 {[%emt 0:00:07]} Kf6 {[%emt 0:02:53]} 34. Ra5 {[%emt 0:00:43]} Rxb3 {[%emt 0:00:43]} 35. Rxa7 {[%emt 0:00:21]} Rb1+ {[%emt 0:00:43]} 36. Kf2 {[%emt 0:00:06]} Rb2+ {[%emt 0:00:29]} 37. Kf1 {[%emt 0:00:05]} h5 {[%emt 0:00:19]} 38. a5 {[%emt 0:00:27]} Ke5 {[%emt 0:01:10]} 39. a6 {[%emt 0:06:08]} (39. Rg7 $11) 39... Ra2 $17 {[%emt 0:01:54]} 40. h4 {[%emt 0:02:00]} (40. g3 $17 {is a better defense.}) 40... gxh4 $19 {[%emt 0:01:06]} 41. Rh7 $2 {[%emt 0:04:26] [#]} (41. Rb7) 41... h3 {[%emt 0:00:19] Black is clearly winning.} 42. gxh3 {[%emt 0:00:05]} Rxa6 {[%emt 0:01:11] Hoping for ...Kf4.} 43. Rxh5 {[%emt 0:00:13]} Kf4 {[%emt 0:00:05]} 44. Ke2 {[%emt 0:04:55]} Ra2+ {[%emt 0:00:06]} 45. Kd3 {[%emt 0:00:04]} Kxf3 {[%emt 0:01:48]} 46. Kd4 {[%emt 0:00:16]} Ra5 {[%emt 0:00:20] Weighted Error Value: White=0.44/Black=0.03 (flawless)} 0-1

[Event "Kvika Banki League Iceland 2022-23"]
[Site "Reykjavik"]
[Date "2022.10.14"]
[Round "2.23"]
[White "Petersson, Baldur Teodor"]
[Black "Finnsson, Johann Arnar"]
[Result "1-0"]
[ECO "C45"]
[WhiteElo "2230"]
[BlackElo "1891"]
[Annotator "TA"]
[PlyCount "67"]
[EventDate "2022.10.13"]
[EventType "team-tourn"]
[EventCountry "ISL"]
[SourceTitle "playchess.com"]
[Source "ChessBase"]
[SourceQuality "1"]
[TimeControl "5400+30"]

{[%evp 13,67,39,55,37,29,10,42,42,33,38,37,36,55,47,50,47,49,45,41,45,43,28,50,58,60,9,11,9,15,0,0,0,20,19,20,23,23,25,20,19,32,31,177,183,183,179,240,240,240,240,240,240,583,572,12845,190]} 1. e4 {[%emt 0:00:04]} e5 {[%emt 0:00:07]} 2. Nf3 {[%emt 0:00:53]} Nc6 {[%emt 0:00:09]} 3. Nc3 {[%emt 0:00:08]} Nf6 {[%emt 0:00:09]} 4. Be2 {[%emt 0:00:06]} Be7 {[%emt 0:00:14]} 5. d4 {[%emt 0:00:22]} exd4 {[%emt 0:01:20]} 6. Nxd4 {[%emt 0:00:07]} Nxd4 {[%emt 0:01:43]} 7. Qxd4 {[%emt 0:00:07]} d6 {[%emt 0:00:48]} 8. h3 {[%emt 0:01:25] C45: Scotch Game.} (8. e5 dxe5 9. Qxe5 O-O $11) 8... O-O {[%emt 0:04:47]} 9. O-O {[%emt 0:01:21]} h6 {[%emt 0:02:53]} (9... Nd7 {keeps more tension.} 10. Nd5 Bh4 11. Be3 Nb6) 10. Be3 {[%emt 0:01:29] White is slightly better.} Re8 {[%emt 0:03:04] [#]} 11. f4 $146 {[%emt 0:00:42]} ({Predecessor:} 11. Rae1 Bf8 12. f4 a6 13. Bf3 Rb8 14. Qd3 c5 15. Rd1 Be6 16. f5 Bd7 17. Nd5 Nxd5 18. exd5 {0-1 (44) Toman,O (2080)-Vancura,D (1747) Czech Republic 2014}) 11... c6 {[%emt 0:01:53]} 12. Bf3 {[%emt 0:02:17]} d5 {[%emt 0:03:20]} 13. exd5 {[%emt 0:03:27]} Nxd5 {[%emt 0:00:25]} 14. Nxd5 {[%emt 0:05:26]} (14. Bxd5 {with more complications.} cxd5 15. Nxd5 b6 16. Rad1) 14... cxd5 {[%emt 0:00:05]} 15. Qxd5 {[%emt 0:01:20]} (15. Bxd5 $2 Bf6 16. Qd3 {[#]} Rxe3 $1 {[%mdl 512]} 17. Qxe3 Qxd5 $19) (15. Qd3 {is interesting.} Bf6 16. c3 Bf5 17. Qxf5 Rxe3 18. Bxd5 Qb6 19. Kh2) 15... Qxd5 {[%emt 0:00:34]} 16. Bxd5 {[%emt 0:00:06]} Bf6 {[%emt 0:00:14][%csl LRb2,LRe3]} 17. Kf2 {[%emt 0:14:26]} Bxb2 {[%emt 0:08:24]} 18. Rab1 {[%emt 0:00:07]} Bf6 {[%emt 0:01:34]} 19. c4 {[%emt 0:04:35]} ({Much weaker is} 19. Bxb7 Bxb7 20. Rxb7 Rac8 $11) (19. Rfd1 $14) 19... Rb8 $1 $11 {[%emt 0:01:39]} ({But not} 19... Bh4+ 20. Kf3 $16) 20. c5 {[%emt 0:21:17] [#] Strongly threatening c6.} Be6 {[%emt 0:00:33]} 21. Bxb7 {[%emt 0:01:00] Hoping for c6.} (21. Bxe6 {seems wilder.} Rxe6 22. Kf3 b6 23. cxb6 axb6 24. Rb3) 21... Bxa2 {[%emt 0:00:16]} 22. c6 $1 {[%emt 0:00:18] Black must now prevent c7.} Bxb1 {[%emt 0:08:58]} 23. Rxb1 {[%emt 0:00:06]} Rxe3 {[%emt 0:25:08]} 24. Kxe3 {[%emt 0:00:44][%mdl 4096] Endgame KRB-KRB} Bd8 {[%emt 0:00:05]} 25. Kd4 {[%emt 0:05:02]} Bc7 {[%emt 0:00:17]} 26. Kc5 {[%emt 0:00:42]} Rd8 {[%emt 0:03:05] Prevents Rd1.} 27. Ba6 {[%emt 0:01:28]} Re8 {[%emt 0:02:09] A mistake that costs the game.} (27... Bd6+ $14 28. Kc4 Bxf4) 28. Rb7 $18 {[%emt 0:08:35][%csl LRa7,LRc7]} Bxf4 {[%emt 0:01:52]} 29. c7 {[%emt 0:00:20]} Bxc7 {[%emt 0:00:15]} (29... Kf8 $142 30. Bb5 Rc8) 30. Rxc7 {[%emt 0:00:07]} Re5+ {[%emt 0:00:47]} 31. Kd4 {[%emt 0:00:13]} Rg5 {[%emt 0:01:07]} 32. Bb7 {[%emt 0:01:40] And now Bd5 would win.} ({Don't play} 32. Rxa7 $6 Rxg2 33. Bb7 Rf2) 32... a5 $2 {[%emt 0:02:27]} (32... g6 {is more resistant.} 33. Bd5 Rf5) 33. Bd5 {[%emt 0:00:12]} Rf5 {[%emt 0:00:23]} 34. Rc8+ $2 {[%emt 0:00:07] Weighted Error Value: White=0.07 (flawless) /Black=0.31} (34. Be4 g6 35. Bxf5 gxf5 36. Ke5 Kg7 37. Kxf5 Kf8 38. Ra7 Ke8 39. Rxa5) 1-0

[Event "Kvika Banki League Iceland 2022-23"]
[Site "Reykjavik"]
[Date "2022.10.14"]
[Round "2.24"]
[White "Fridgeirsson, Dagur Andri"]
[Black "Kristjansson, Atli Freyr"]
[Result "1-0"]
[ECO "D53"]
[WhiteElo "1943"]
[BlackElo "2164"]
[Annotator "TA"]
[PlyCount "79"]
[EventDate "2022.10.13"]
[EventType "team-tourn"]
[EventCountry "ISL"]
[SourceTitle "playchess.com"]
[Source "ChessBase"]
[SourceQuality "1"]
[TimeControl "5400+30"]

{[%evp 13,79,12,22,25,29,13,25,-7,-1,0,23,22,30,22,30,38,52,51,46,45,40,47,50,43,53,45,113,59,145,110,107,93,184,164,170,7,12,0,0,0,278,270,396,439,423,403,416,400,658,671,674,643,765,717,1237,1180,1234,1162,1929,1864,6207,6207,5731,5318,29980,29982,5810,5295]} 1. d4 {[%emt 0:00:09]} Nf6 {[%emt 0:13:55]} 2. c4 {[%emt 0:00:08]} e6 {[%emt 0:00:29]} 3. Nf3 {[%emt 0:00:18]} d5 {[%emt 0:00:59]} 4. Nc3 {[%emt 0:00:16]} a6 {[%emt 0:00:18]} 5. Bg5 {[%emt 0:02:33]} Be7 {[%emt 0:00:23]} 6. e3 {[%emt 0:00:13]} h6 {[%emt 0:00:20]} 7. Bh4 {[%emt 0:00:33]} Nbd7 {[%emt 0:01:04]} 8. cxd5 {[%emt 0:01:23] D53: Queen's Gambit Declined: 4 Bg5 Be7: Early deviations.} Nxd5 {[%emt 0:00:45]} 9. Bxe7 {[%emt 0:01:31]} Qxe7 {[%emt 0:00:11] [#]} 10. e4 $146 {[%emt 0:01:03] White has an edge.} ({Predecessor:} 10. Bd3 Qb4 11. Qd2 Nxc3 12. bxc3 Qd6 13. O-O b6 14. e4 Bb7 15. a4 g5 16. a5 {0-1 (72) Nietsch,F (1549)-Mesic,R (1643) Lehrte 2016}) 10... Nxc3 {[%emt 0:00:08]} 11. bxc3 {[%emt 0:00:08]} e5 {[%emt 0:00:16]} 12. Bd3 {[%emt 0:00:55]} O-O {[%emt 0:00:12]} 13. O-O {[%emt 0:00:17]} c5 {[%emt 0:01:10]} 14. d5 {[%emt 0:01:20]} Nf6 {[%emt 0:00:29]} 15. Nd2 {[%emt 0:01:13]} b5 {[%emt 0:00:54]} 16. c4 {[%emt 0:04:28]} Bd7 {[%emt 0:00:55]} 17. Qe2 {[%emt 0:01:52][%cal Rc4b5]} b4 {[%emt 0:00:33]} 18. h3 {[%emt 0:00:45]} a5 {[%emt 0:01:22]} 19. f4 {[%emt 0:02:26]} Rae8 {[%emt 0:03:11] [#]} ({Black should play} 19... Ba4 $14) 20. Rae1 {[%emt 0:02:02]} ({Better is} 20. fxe5 $1 $16 Qxe5 21. Qe3) 20... Nh7 {[%emt 0:02:10]} (20... Ba4 $14) 21. Qf2 {[%emt 0:04:16]} f6 {[%emt 0:00:39]} 22. Nb3 {[%emt 0:01:37][%csl LRa5,LRc5]} exf4 {[%emt 0:00:56]} (22... Rc8 $16) 23. Nxc5 $18 {[%emt 0:07:35]} Ng5 {[%emt 0:04:32][%cal Od7h3]} 24. Qd4 $2 {[%emt 0:12:08]} ({White should try} 24. Nxd7 $18 Qxd7 25. Qxf4) 24... f3 $1 $11 {[%emt 0:01:50]} 25. Nxd7 {[%emt 0:01:27]} Qxd7 {[%emt 0:01:38]} 26. Re3 $1 {[%emt 0:03:31]} f5 $2 {[%emt 0:08:33][%mdl 8192]} (26... Re5 $11 {and Black has nothing to worry.}) 27. e5 $18 {[%emt 0:08:14][%cal Be4e5,Be5e6][%mdl 32]} ({Not} 27. exf5 Qd6 $16) (27. gxf3 Nxh3+ 28. Kh2 fxe4 29. fxe4 Nf4 $15) 27... f4 {[%emt 0:01:26]} (27... Qa4 {might work better.} 28. gxf3 f4) 28. Rexf3 {[%emt 0:04:42]} Nxf3+ {[%emt 0:00:34]} 29. Rxf3 {[%emt 0:00:05]} g5 {[%emt 0:03:23] [#] ...Qg7 is the strong threat.} 30. Qe4 {[%emt 0:06:21]} Qg7 {[%emt 0:01:03]} (30... Rf6 $142 31. Rf2 Qe7) 31. e6 {[%emt 0:00:26]} Rf6 {[%emt 0:03:14]} 32. c5 {[%emt 0:01:13]} h5 {[%emt 0:01:08]} 33. Bb5 {[%emt 0:02:06]} Re7 {[%emt 0:05:13]} 34. Bc4 {[%emt 0:01:50] Strongly threatening d6.} g4 {[%emt 0:00:31]} 35. Rf2 {[%emt 0:11:31]} f3 {[%emt 0:06:40]} 36. d6 {[%emt 0:00:45]} g3 {[%emt 0:00:30]} 37. Rxf3 {[%emt 0:01:58] Active counter play!} Rxf3 {[%emt 0:00:15]} 38. gxf3 {[%emt 0:02:27]} ({Worse is} 38. Qxf3 Qd4+ 39. Kh1 Qxc4 $11) 38... Qa1+ {[%emt 0:04:10]} 39. Kg2 {[%emt 0:00:59]} Qb2+ {[%emt 0:01:27]} 40. Qe2 {[%emt 0:00:51] Weighted Error Value: White=0.17 (very precise) /Black=0.81} 1-0

[Event "Kvika Banki League Iceland 2022-23"]
[Site "Reykjavik"]
[Date "2022.10.15"]
[Round "3.1"]
[White "Steingrimsson, Hedinn"]
[Black "Lomasov, Semyon"]
[Result "1/2-1/2"]
[ECO "A29"]
[WhiteElo "2512"]
[BlackElo "2541"]
[Annotator "TA"]
[PlyCount "66"]
[EventDate "2022.10.13"]
[EventType "team-tourn"]
[EventCountry "ISL"]
[SourceTitle "playchess.com"]
[Source "ChessBase"]
[SourceQuality "1"]
[TimeControl "5400+30"]

{[%evp 12,66,22,7,14,0,48,41,36,29,23,16,22,31,16,8,12,8,16,10,18,3,6,0,0,0,0,0,0,0,0,0,0,0,0,0,0,0,0,0,0,0,0,0,0,0,0,0,0,0,0,0,0,0,0,-7,-7]} 1. c4 {[%emt 0:02:33]} e5 {[%emt 0:01:50]} 2. g3 {[%emt 0:00:00]} Nf6 {[%emt 0:00:37]} 3. Bg2 {[%emt 0:00:01]} Bc5 {[%emt 0:00:52]} 4. Nc3 {[%emt 0:03:23]} Nc6 {[%emt 0:02:19]} 5. Nf3 {[%emt 0:09:58]} d6 {[%emt 0:27:46]} 6. O-O {[%emt 0:08:04]} O-O {[%emt 0:01:54]} 7. e3 {[%emt 0:00:45]} Bb6 {[%emt 0:00:57] A29: English Opening: Four Knights Variation with 4 g3.} 8. h3 {[%emt 0:08:47] [#]} Ne7 $146 {[%emt 0:03:58]} (8... Ba5 $11) ({Predecessor:} 8... Be6 9. b3 h6 10. d4 exd4 11. exd4 Ne7 12. Na4 d5 13. Ne5 c6 14. Nxb6 axb6 15. Bb2 {0-1 (38) Fernandez,D (2476)-McShane,L (2687) London 2015}) 9. d4 $14 {[%emt 0:03:41]} Ng6 {[%emt 0:02:24] White is slightly better.} 10. b4 {[%emt 0:08:33] [#] Hoping for c5.} c6 {[%emt 0:03:48]} 11. dxe5 {[%emt 0:05:06]} Nxe5 {[%emt 0:03:53]} 12. Nxe5 {[%emt 0:05:29]} dxe5 {[%emt 0:00:10]} 13. b5 {[%emt 0:01:47] The position is equal.} Be6 {[%emt 0:05:35]} 14. Ba3 {[%emt 0:09:29]} (14. bxc6 {seems wilder.} bxc6 15. Ba3 Bxc4 16. Bxf8 Bxf1 17. Qxd8 Bxd8 18. Bxg7 Bxg2 19. Bxf6 Bxh3 20. Bxe5 Bf5 21. Kg2) 14... Bxc4 {[%emt 0:07:26]} 15. Bxf8 {[%emt 0:00:22] [#] aiming for Ba3.} Bxf1 {[%emt 0:00:21]} (15... Qxf8 {is more complex.} 16. bxc6 Bxf1 17. Qxf1 bxc6 18. Na4 Qe8) 16. Qxd8 {[%emt 0:07:50]} (16. Qxf1 {with more complications.} Qxf8 17. bxc6 bxc6 18. Na4) 16... Bxd8 {[%emt 0:05:02]} 17. Rxf1 {[%emt 0:03:44]} Kxf8 {[%emt 0:02:47]} 18. bxc6 {[%emt 0:00:20]} bxc6 {[%emt 0:00:02]} 19. Rc1 {[%emt 0:00:09]} Bb6 {[%emt 0:14:02]} 20. Nb5 {[%emt 0:04:18]} Rd8 {[%emt 0:00:40]} 21. Bxc6 {[%emt 0:00:37]} Rc8 {[%emt 0:00:48]} 22. Nd6 {[%emt 0:01:01]} Rc7 {[%emt 0:00:03]} 23. Nb5 {[%emt 0:01:00]} Rc8 {[%emt 0:00:03]} 24. Nd6 {[%emt 0:00:06]} Rc7 {[%emt 0:00:03]} 25. Rc4 {[%emt 0:00:38]} Ke7 {[%emt 0:01:40]} 26. Nf5+ {[%emt 0:01:34]} Kf8 {[%emt 0:00:02]} 27. g4 {[%emt 0:02:21]} Ne8 {[%emt 0:02:17]} 28. Bd5 {[%emt 0:02:48]} Rxc4 {[%emt 0:00:26]} 29. Bxc4 {[%emt 0:00:02]} g6 {[%emt 0:00:06]} 30. Ng3 {[%emt 0:00:18]} Nd6 {[%emt 0:00:10]} 31. Bd5 {[%emt 0:00:52]} h6 {[%emt 0:01:32]} 32. Kg2 {[%emt 0:03:11]} Kg7 {[%emt 0:01:07]} 33. h4 {[%emt 0:00:22]} f5 {[%emt 0:01:11] Weighted Error Value: White=0.04 (flawless) /Black=0.02 (flawless)} 1/2-1/2